Cogmind - Beta 9.6 @@@ ROGUE MODE // 2020.05.15 @ 22:44:02 Player: TheGreatBorealis Result: Self-destructed Performance ------------- Evolutions (1) 500 Regions Visited (3) 600 Robots Destroyed (37) 185 Value Destroyed (1131) 1131 Prototype IDs (3) 60 Alien Tech Used (0) 0 Bonus (97) 97 TOTAL SCORE: 2573 Bonus ------- High Alert Combat Kills 47 Follower Combat Kills 50 Cogmind --------- Core Integrity 36/400 Matter 300/300 Energy 100/100 System Corruption 0% Temperature Cool (0) Movement Core (50) Location -9/Storage Parts ------- > --- POWER (1) -------- (None) > --- PROPULSION (4) --- (None) > --- UTILITY (2) ------ (None) > --- WEAPON (2) ------- (None) > --- INVENTORY (4) ---- Improved Ion Engine Aluminum Leg Visual Processing Unit Light Armor Plating Peak State ------------ > --- POWER ------------ Light Nuclear Core > --- PROPULSION ------- Aluminum Leg Aluminum Leg Aluminum Leg Aluminum Leg > --- UTILITY ---------- Small Storage Unit Large Matter Pod > --- WEAPON ----------- Improved Assault Rifle Improved Assault Rifle > --- INVENTORY -------- Improved Ion Engine Aluminum Leg Aluminum Leg Aluminum Leg Visual Processing Unit Light Armor Plating [Rating: 15] Favorites ----------- Power Improved Ion Engine Engine Improved Ion Engine Power Core Light Nuclear Core Propulsion Aluminum Leg Leg Aluminum Leg Utility Small Storage Unit Storage Small Storage Unit Weapon Assault Rifle Energy Gun Small Laser Ballistic Gun Assault Rifle Build | -11 -10 -9 -9 ------- Run | Scr Mat Mat Sto Slots Evolved 2 | . . 2 . Power . | . . . . Propulsion 2 | . . 2 . Utility . | . . . . Weapon . | . . . . Parts Attached 32 | 6 1 6 19 Power 6 | 1 . 2 3 Engine 5 | 1 . 2 2 Core 1 | . . . 1 Reactor . | . . . . Propulsion 18 | 2 . 4 12 Treads . | . . . . Leg 18 | 2 . 4 12 Wheel . | . . . . Hover . | . . . . Flight . | . . . . Utility 2 | 1 1 . . Device . | . . . . Storage 2 | 1 1 . . Processor . | . . . . Hackware . | . . . . Protection . | . . . . Artifact . | . . . . Weapon 6 | 2 . . 4 Energy Gun 1 | . . . 1 Energy Cannon . | . . . . Ballistic Gun 5 | 2 . . 3 Ballistic Cannon . | . . . . Launcher . | . . . . Special Weapon . | . . . . Impact Weapon . | . . . . Slashing Weapon . | . . . . Piercing Weapon . | . . . . Special Melee Weapon . | . . . . Unidentified Prototypes 1 | . . . 1 Parts Lost 10 | . . . 10 Power 1 | . . . 1 Propulsion 6 | . . . 6 Utility . | . . . . Weapon 3 | . . . 3 Highest Loss Streak 6 | . . . 6 Average Slot Usage (%) 97 | . 100 100 95 Engine 10 | . 14 11 8 Leg 39 | . 28 44 42 Storage 23 | . 28 22 21 Ballistic Gun 22 | . 28 22 20 Naked Turns 15 | . . . 15 Heaviest Build 20 | 11 14 18 20 Greatest Support 40 | 20 20 40 40 Greatest Overweight (x) 2 | . . . 2 Average Overweight (x) . | . . . . Largest Inventory Capacity 6 | 6 6 6 6 Average Capacity 5 | 5 6 6 5 Most Carried 6 | 4 6 6 6 Average Carried 5 | 2 4 4 5 Final Capacity 6 | 6 6 6 4 Final Carried 6 | 4 6 6 4 Class Distribution -------------------- 60% | Scavenger-Mutant 39% | Mutant Dominant Class ---------------- Mutant | -10/Materials Mutant | -9/Materials Scavenger-Mutant | -9/Storage Resources | -11 -10 -9 -9 ----------- Run | Scr Mat Mat Sto Matter Collected 1105 | 135 134 70 766 Remotely . | . . . . Salvage Created 1383 | . 202 146 1035 Parts 103 | . 10 17 76 Haulers Intercepted . | . . . . Recyclers Shooed . | . . . . Parts Field Recycled . | . . . . Retrieved Matter . | . . . . Parts Self-Destructed . | . . . . Prevented . | . . . . Kills | -11 -10 -9 -9 ------- Run | Scr Mat Mat Sto Combat Hostiles Destroyed 33 | . 3 5 25 Melee 1 | . . . 1 Guns 32 | . 3 5 24 Classes Destroyed 9 | . 3 2 4 Worker 1 | . . . 1 Recycler 1 | . 1 . . Operator 1 | . 1 . . Watcher 1 | . . . 1 Swarmer 5 | . . 3 2 Grunt 20 | . 3 1 16 Brawler 3 | . . . 3 Protector 1 | . . . 1 Sentry 4 | . . 1 3 Best Kill Streak 9 | . 3 4 9 Combat Bots Only 9 | . 2 4 9 Max Kills in Single Turn 2 | . 1 1 2 Gunslinging 1 | . . . 1 Exploded . | . . . . Melee 1 | . . . 1 Uniques/NPCs Destroyed . | . . . . Combat | -11 -10 -9 -9 -------- Run | Scr Mat Mat Sto Damage Taken 1992 | . 111 185 1696 Core 385 | . 21 18 346 Absorbed by Shields . | . . . . Core Remaining (%) 95 | 100 91 . . Volleys Fired 97 | . 12 15 70 Largest 2 | . 2 2 2 Hottest 46 | . 40 40 46 Shots Fired 186 | . 24 30 132 Gun 186 | . 24 30 132 Cannon . | . . . . Launcher . | . . . . Special . | . . . . Kinetic 185 | . 24 30 131 Thermal 1 | . . . 1 Explosive . | . . . . Electromagnetic . | . . . . Robot Hit Streak 19 | . 8 5 19 Robot Miss Streak 3 | . 2 3 2 Penetration Max . | . . . . Secondary Targets 4 | . 1 1 2 Max Gunslinging Chain 1 | . 1 1 1 Shots Hit Robots 136 | . 20 16 100 Core Hits 62 | . 11 7 44 Critical Hits 3 | . 1 1 1 Critical Kills 2 | . . 1 1 Critical Parts Destroyed 1 | . 1 . . Melee Attacks . | . . . . Impact . | . . . . Slashing . | . . . . Piercing . | . . . . Sneak Attacks . | . . . . Combat Hostiles . | . . . . Follow-up Attacks . | . . . . Damage Inflicted 2005 | . 255 212 1538 Guns 1971 | . 255 212 1504 Cannons . | . . . . Explosions . | . . . . Melee . | . . . . Ramming 34 | . . . 34 Kinetic 1959 | . 255 212 1492 Thermal 12 | . . . 12 Explosive . | . . . . Electromagnetic . | . . . . Impact . | . . . . Slashing . | . . . . Piercing . | . . . . Highest Corruption . | . . . . Average Corruption . | . . . . Corruption Purged . | . . . . Overload Shots . | . . . . Overflow Damage . | . . . . Projectiles . | . . . . Explosions . | . . . . Melee . | . . . . Knockbacks . | . . . . Impact . | . . . . Kinetic . | . . . . Secondary . | . . . . Self-Inflicted Damage 13 | . . . 13 Shots . | . . . . Rammed 4 | . . . 4 Targets Rammed 8 | . . . 8 Kicked 4 | . . . 4 Crushed . | . . . . Highest Temperature 11 | . . . 11 Average Temperature 3 | . . . 3 Received Heat Transfer 669 | . 60 24 585 Siege Activations . | . . . . Robots Corrupted . | . . . . Combat Hostiles . | . . . . Parts Fried . | . . . . Impact Corruptions . | . . . . Robots Melted . | . . . . Combat Hostiles . | . . . . Parts Melted . | . . . . Heat Transferred 25 | . . . 25 Parts Sabotaged . | . . . . Parts Stolen . | . . . . Parts Stripped . | . . . . Power Chain Reactions . | . . . . Missiles Intercepted . | . . . . Alert | -11 -10 -9 -9 ------- Run | Scr Mat Mat Sto Peak Influence 557 | . 90 177 557 Average Influence 177 | . 46 70 266 Maximum Alert Level 2 | . . . 2 Low Security (%) 62 | 100 100 100 35 Level 1 26 | . . . 45 Level 2 11 | . . . 18 Level 3 . | . . . . Level 4 . | . . . . Level 5 . | . . . . High Security . | . . . . Max Security . | . . . . Squads Dispatched 7 | . 3 . 4 Investigation 1 | . 1 . . Extermination . | . . . . Reinforcement 4 | . 2 . 2 Assault 2 | . . . 2 Garrison . | . . . . Intercept . | . . . . Construction Impeded . | . . . . Haulers Reinforced . | . . . . Stealth | -11 -10 -9 -9 --------- Run | Scr Mat Mat Sto Distress Signals 1 | . 1 . . Communications Jammed . | . . . . Distress Signals . | . . . . Times Spotted 47 | . 8 5 34 Peak Tracking Total 7 | . 4 4 7 Tactical Retreats 4 | . 2 . 2 Traps | -11 -10 -9 -9 ------- Run | Scr Mat Mat Sto Traps Triggered 3 | . 1 . 2 Indirectly . | . . . . Trap Hack Attempts . | . . . . Triggered . | . . . . Disarmed . | . . . . Reprogrammed . | . . . . Reused . | . . . . Traps Extracted . | . . . . Installed . | . . . . Triggered . | . . . . Machines | -11 -10 -9 -9 ---------- Run | Scr Mat Mat Sto Machines Disabled 1 | . . . 1 Max in Single Turn 1 | . . . 1 Machines Sabotaged . | . . . . Garrisons Compromised . | . . . . Overloaded Fab Kills . | . . . . Fab Network Shutdowns . | . . . . Hacking | -11 -10 -9 -9 --------- Run | Scr Mat Mat Sto Machines Accessed 10 | . 3 3 4 Terminals 9 | . 3 2 4 Fabricators . | . . . . Repair Stations . | . . . . Recycling Units . | . . . . Scanalyzers 1 | . . 1 . Garrison Access . | . . . . Total Hacks 19 | . 8 5 6 Successful 10 | . 2 5 3 Failed 9 | . 6 . 3 Catastrophic 1 | . . . 1 Database Lockouts . | . . . . Manual 7 | . 3 . 4 Terminals 17 | . 8 3 6 Fabricators . | . . . . Repair Stations . | . . . . Recycling Units . | . . . . Scanalyzers 2 | . . 2 . Garrison Access . | . . . . Terminal Hacks 8 | . 2 3 3 Prototype ID Bank 1 | . . . 1 Terminal Index 1 | . . 1 . Alert Level 1 | . 1 . . Surveillance Status 1 | . . 1 . Recall Investigation 1 | . 1 . . Zone Layout 3 | . . 1 2 Fabricator Hacks . | . . . . Repair Station Hacks . | . . . . Recycling Unit Hacks . | . . . . Scanalyzer 2 | . . 2 . Insert Component 1 | . . 1 . Analyze 1 | . . 1 . Garrison Access Hacks . | . . . . Unauthorized Hacks . | . . . . Terminals . | . . . . Fabricators . | . . . . Repair Stations . | . . . . Recycling Units . | . . . . Scanalyzers . | . . . . Garrison Access . | . . . . Data Cores Recovered . | . . . . Used . | . . . . Hacking Detections 4 | . 3 1 . Full Trace Events . | . . . . Feedback Events . | . . . . Feedback Blocked . | . . . . Robot Schematics Acquired . | . . . . Robots Built . | . . . . Matter . | . . . . Time . | . . . . Total Robot Build Rating . | . . . . Part Schematics Acquired 1 | . . 1 . Parts Built . | . . . . Matter . | . . . . Time . | . . . . Total Part Build Rating . | . . . . Parts Repaired . | . . . . Time . | . . . . Parts Recycled . | . . . . Recycled Matter . | . . . . Retrieved Matter . | . . . . Retrieved Components . | . . . . Parts Scanalyzed 1 | . . 1 . Part Schematics Acquired 1 | . . 1 . Parts Damaged . | . . . . Bothacking | -11 -10 -9 -9 ------------ Run | Scr Mat Mat Sto Used RIF Installer . | . . . . Robots Hacked . | . . . . Non-combat . | . . . . Combat . | . . . . Robot Hacks Applied . | . . . . Relay Couplers Released . | . . . . Robots Rewired . | . . . . Allies Hacked . | . . . . Hacks Repelled . | . . . . Allies | -11 -10 -9 -9 -------- Run | Scr Mat Mat Sto Total Allies 2 | . . . 2 Largest Group 2 | . . . 2 Highest-Rated Group 62 | . . . 62 Highest-Rated Ally 31 | . . . 31 Total Orders . | . . . . Ally Attacks 9 | . . . 9 Total Damage 148 | . . . 148 Kills 2 | . . . 2 Allies Corrupted . | . . . . Allies Melted . | . . . . Intel | -11 -10 -9 -9 ------- Run | Scr Mat Mat Sto Robot Analysis Total . | . . . . Derelict Logs Recovered . | . . . . Drone Launches . | . . . . Drone Recoveries . | . . . . Exploration | -11 -10 -9 -9 ------------- Run | Scr Mat Mat Sto Turns Passed 1436 | 62 295 240 839 Spaces Moved 703 | 43 166 152 342 Core 17 | 3 . . 14 Treads . | . . . . Legs 686 | 40 166 152 328 Wheels . | . . . . Hover . | . . . . Flight . | . . . . Fastest Speed 50 | 50 120 120 50 Average Speed 118 | 115 120 120 117 Slowest Speed 150 | 120 120 120 150 Overloaded Moves . | . . . . Propulsion Burnouts . | . . . . Robots Hopped . | . . . . Cave-ins Triggered . | . . . . Exploration Rate (%) 27 | 4 27 17 63 Regions Visited 3 Branch Regions 1 Pre-discovered Areas . | . . . . Known Exits Taken . | . . . . Unknown Exits Taken 3 | 1 1 1 . Scrap Searched . | . . . . Spaces Dug . | . . . . Terrain Destroyed . | . . . . Melee . | . . . . Projectile . | . . . . AOE . | . . . . Actions | -11 -10 -9 -9 --------- Run | Scr Mat Mat Sto Total 1124 | 52 238 180 654 Wait 254 | . 54 4 196 Move 700 | 42 165 151 342 Hop . | . . . . Pick Up 11 | 4 4 1 2 Fast Attach 12 | 6 1 . 5 Attach 4 | . . 2 2 Detach . | . . . . Swap 16 | . . 4 12 Drop 22 | . 2 3 17 Fire 97 | . 12 15 70 Melee . | . . . . Ram 3 | . . . 3 Kick 5 | . . . 5 Crush . | . . . . Escape Stasis . | . . . . Rewire . | . . . . Trap . | . . . . Miscellaneous . | . . . . Route ------- -11/Scrapyard -10/Materials -9/Materials -9/Storage History --------- Turn | Location | Event 4 | -11/Scrapyard | Discovered new exit (range 15) 63 | -11/Scrapyard | Entered Materials 316 | -10/Materials | Build established: Mutant 329 | -10/Materials | Discovered new exit (range 8) 358 | -10/Materials | Entered another Materials area 358 | -9/Materials | Evolved 2 slots: Propulsion x2 570 | -9/Materials | Discovered new exit (range 4) 598 | -9/Materials | Entered Storage 686 | -9/Storage | Met a pair of Derelict thieves 842 | -9/Storage | Build established: Scavenger-Mutant 1037 | -9/Storage | Destroyed 9 combat bots 1402 | -9/Storage | Lost 6 parts (1p2n3w) 1411 | -9/Storage | Core integrity fell below 50% 1422 | -9/Storage | Released all parts (2) 1434 | -9/Storage | Core integrity fell below 20% 1437 | -9/Storage | Self-destructed Last Messages --------------- 01336_ K-01 Serf cleans the Terminal. 01337_ G-34 Mercenary destroyed. 01339_ U-05 Engineer builds a Door. 01346_ K-01 Serf collects debris. 01350_ Imp. Assault Rifle destroyed. 01356_ Lgt. Nuclear Core destroyed. 01364_ Imp. Assault Rifle destroyed. 01364_ Aluminum Leg destroyed. 01366_ Kicked G-34 Mercenary out of the way. 01366_ G-34 Mercenary destroyed. 01368_ K-01 Serf collects debris. 01368_ Acquired Sml. Laser. 01371_ Sml. Laser destroyed. 01374_ Slammed into Y-45 Defender. 01374_ ALERT: Hostiles spotted, dispatching reinforcements to Terminal S011. 01408_ Aluminum Leg destroyed. 01422_ Released Sml. Storage Unit. 01422_ Released Lrg. Matter Pod. 01432_ Slammed into Y-45 Defender. Map ----- +----------------------------------------------------+ | | | | | | | | | | | | | | | | | | | | | | | | | | | | | | | | | | | ???????????????????????######## | | ???????????????????????# # | | ???????????????????????# """" # | | ???????????????????????#%"""" # | | ???????????????????????#%"""" # | | ??????????????????????##%"""" # | | ??????????????????????# !! # | | ??????????????????????####+#### | | ????????????????????????#@ #?? | | ????????????????????????# #?? | | ???????#????????????????# #?? | | ?????? #????#???????????## ##?? | | ?????? #??? #????????????#Y#??? | | ?????? #?? #????????????#Y#??? | | ????? #? #????????????#Y#??? | | ????? ? #????????????# #??? | | ??###+## ############## #??? | | ### ^ ] ## + #??? | | ==#!* ## # ##??? | | !*# *% ## # #???? | | *%#=!""""" ## """""" # #???? | | "%/[^""""" #???????" + #???? | | [*#%=""""" #???????" # #???? | | ### %! #???????" # #???? | | %# = =[ #??????? # #???? | | %+ """" #?????? # #???? | | =# """"" #?????##### #???? | | # %""""" #?????????# #???? | | # #?????????# ##??? | | # #?????????# T#??? | | ## #?????????# ##??? | | ?# #?????????# #???? | | ?# #?????????# #???? | +----------------------------------------------------+ Best States ------------- Heat Dissipation 28 Energy Generation 14 Energy Capacity 265 Matter Stores 440 Matter Capacity 450 Sight Range 16 Terrain Scan Density 10 Evasion (%) 50 Item Schematics ----------------- Aluminum Leg | -9/Materials | Scanalyzed Robot Schematics ------------------ None Fabricated ------------ Nothing Alien Tech Used ----------------- None Achievements -------------- None Challenges ------------ None Game ------ Seed MicroAntigravInterpreter Manual? 0 Play Time 00:21:03 Cumulative 17.8 hours Start 2020.05.15 @ 22:26:04 End 2020.05.15 @ 22:44:02 Sessions 1 Manual Loads 0 Difficulty Rogue Special Mode None Game No. 38 Rogue 38 Adventurer 0 Explorer 0 Win Type - Total 0 Types 0/0/0/0/0/0/0 Lore% 18 Gallery% 26 Achievement% 23 Wizard Run 0 Options --------- ASCII 0 Keyboard 1 Movement Numpad Keybinds 0 Fullscreen 2 Font 18/Terminus Map View 76x50 Tactical HUD 1 Map Filters NONE Filters NONE Steam 1 RUN: d3a125aa-ad2c-4c72-976d-d3bfcd507dd4